Cogmind - Beta 16 @@@ ROGUE MODE // 2025.11.14 @ 13:54:42 Player: delto Result: Destroyed by EM-ED9(R) with Subdweller Machine Gun Performance ------------- Evolutions (0) 0 Regions Visited (2) 400 Robots Destroyed (11) 55 Value Destroyed (189) 189 Prototype IDs (0) 0 Alien Tech Used (0) 0 Bonus (0) 0 TOTAL SCORE: 644 Bonus ------- None Cogmind --------- Core Integrity 0/250 Matter 258/300 Energy 38/100 System Corruption 0% Temperature Cool (0) Movement Core (50) Location -10/Subcaves Parts ------- > --- POWER (1) -------- (None) > --- PROPULSION (2) --- (None) > --- UTILITY (2) ------ Improved Heat Sink Improved Terrain Scanner > --- WEAPON (2) ------- (None) > --- INVENTORY (5) ---- Seismic Detector Hacking Suite Heavy Riot Gun Subdweller Beam Cannon Grenade Launcher Peak State ------------ > --- POWER ------------ Light Ion Engine > --- PROPULSION ------- Aluminum Leg Aluminum Leg > --- UTILITY ---------- Improved Heat Sink Improved Terrain Scanner > --- WEAPON ----------- Heavy Riot Gun Flamer > --- INVENTORY -------- Light Ion Engine Aluminum Leg Seismic Detector Hacking Suite Assault Rifle [Rating: 15] Favorites ----------- Power Light Ion Engine Engine Light Ion Engine Propulsion Aluminum Leg Leg Aluminum Leg Utility Improved Terrain Scanner Device Improved Terrain Scanner Storage Small Storage Unit Weapon Assault Rifle Energy Gun Medium Laser Ballistic Gun Assault Rifle Launcher Grenade Launcher Special Weapon Flamer Build | -11 -10 -10 ------- Run | Yrd Mat Sub Slots Evolved . | . . . Power . | . . . Propulsion . | . . . Utility . | . . . Weapon . | . . . Parts Attached 16 | 8 3 5 Power 2 | 1 . 1 Engine 2 | 1 . 1 Core . | . . . Reactor . | . . . Propulsion 3 | 2 . 1 Treads . | . . . Leg 3 | 2 . 1 Wheel . | . . . Hover . | . . . Flight . | . . . Utility 4 | 3 1 . Device 3 | 2 1 . Storage 1 | 1 . . Processor . | . . . Hackware . | . . . Protection . | . . . Artifact . | . . . Weapon 7 | 2 2 3 Energy Gun 3 | 2 . 1 Energy Cannon . | . . . Ballistic Gun 2 | . 1 1 Ballistic Cannon . | . . . Launcher 1 | . 1 . Special Weapon 1 | . . 1 Impact Weapon . | . . . Slashing Weapon . | . . . Piercing Weapon . | . . . Special Melee Weapon . | . . . Unidentified Prototypes . | . . . Parts Lost 8 | . 1 7 Power 2 | . . 2 Propulsion 3 | . . 3 Utility 1 | . 1 . Weapon 2 | . . 2 Highest Loss Streak 5 | . 1 5 To Critical Strikes . | . . . Average Backups 4 | 3 4 4 Power 1 | 2 1 . Propulsion . | . . . Utility 1 | . 1 2 Weapon 1 | . 1 1 Tool/Special . | . . . Unused Backups 5 | . 2 3 Power 2 | . 2 . Propulsion . | . . . Utility 2 | . . 2 Weapon 1 | . . 1 Tool/Special . | . . . Average Slot Usage (%) 87 | . 95 83 Engine 10 | . 14 9 Leg 23 | . 28 20 Device 26 | . 24 28 Energy Gun 8 | . 13 5 Ballistic Gun 10 | . 7 11 Launcher 6 | . 6 6 Peak Build Rating 15 | 9 11 15 Average Rating 9 | 6 9 11 On Entrance 6 | . 9 11 Avg Prop Armor Cover (%) . | . . . Naked Turns . | . . . Heaviest Build 12 | 12 10 11 Greatest Support 20 | 20 20 20 Greatest Overweight (x) 1 | . . 1 Average Overweight (x) . | . . . Largest Inventory Capacity 8 | 8 5 5 Average Capacity 5 | 7 5 5 Most Carried 5 | 5 5 5 Average Carried 4 | 3 4 4 Final Capacity 5 | 5 5 5 Final Carried 5 | 5 5 5 Class Distribution -------------------- 100% | Mutant Dominant Class ---------------- Mutant | -10/Materials Mutant | -10/Subcaves Resources | -11 -10 -10 ----------- Run | Yrd Mat Sub Matter Collected 460 | 280 36 144 Remotely . | . . . Salvage Created 285 | 123 117 45 Parts 21 | 13 6 2 Haulers Intercepted . | . . . Recyclers Shooed . | . . . Parts Field Recycled . | . . . Retrieved Matter . | . . . Parts Self-Destructed 10 | . . 10 Prevented . | . . . Parts Restored . | . . . Kills | -11 -10 -10 ------- Run | Yrd Mat Sub Combat Hostiles Destroyed 4 | . 2 2 Guns 3 | . 2 1 AOE 1 | . . 1 Classes Destroyed 5 | 1 2 2 Tunneler 6 | 6 . . Operator 1 | . 1 . Swarmer 1 | . . 1 Grunt 2 | . 2 . Subdweller 1 | . . 1 Best Kill Streak 3 | 3 2 1 Combat Bots Only 2 | . 2 1 Max Kills in Single Turn 1 | 1 1 1 Gunslinging . | . . . Exploded 1 | . . 1 Melee . | . . . Uniques/NPCs Destroyed . | . . . Combat | -11 -10 -10 -------- Run | Yrd Mat Sub Hostile Shots Fired 93 | . 18 75 Missed 36 | . 7 29 Hits 57 | . 11 46 Projectile 57 | . 11 46 Critical Strikes 2 | . 1 1 Damage Taken 989 | . 143 846 Core 254 | . 21 233 Absorbed by Shields . | . . . Core Remaining (%) 100 | 100 . . Volleys Fired 68 | 15 12 41 Largest 2 | 2 2 2 Hottest 160 | 90 90 160 Shots Fired 108 | 30 22 56 Gun 101 | 30 22 49 Cannon . | . . . Launcher 5 | . . 5 Special 2 | . . 2 Kinetic 39 | . 2 37 Thermal 52 | 30 20 2 Explosive 5 | . . 5 Electromagnetic 12 | . . 12 Robot Hit Streak 34 | 3 7 34 Robot Miss Streak 4 | 2 4 3 Penetration Max . | . . . Secondary Targets . | . . . Shots Hit Robots 72 | 14 13 45 Core Hits 17 | 6 7 4 Critical Kills 1 | . 1 . Critical Parts Destroyed . | . . . Critical Strikes 2 | 1 1 . Burn 1 | 1 . . Destroy 1 | . 1 . Melee Attacks . | . . . Impact . | . . . Slashing . | . . . Piercing . | . . . Sneak Attacks . | . . . Combat Hostiles . | . . . Follow-up Attacks . | . . . Damage Inflicted 660 | 162 154 344 Guns 521 | 162 154 205 Cannons . | . . . Explosions 139 | . . 139 Melee . | . . . Ramming . | . . . Kinetic 140 | . 12 128 Thermal 304 | 162 142 . Explosive 139 | . . 139 Electromagnetic 77 | . . 77 Impact . | . . . Slashing . | . . . Piercing . | . . . Highest Corruption . | . . . Average Corruption . | . . . Corruption Purged . | . . . Corruption Blocked . | . . . Overload Shots . | . . . Overflow Damage . | . . . Projectiles . | . . . Explosions . | . . . Melee . | . . . Knockbacks . | . . . Impact . | . . . Kinetic . | . . . Secondary . | . . . Self-Inflicted Damage . | . . . Shots . | . . . Rammed . | . . . Targets Rammed . | . . . Kicked . | . . . Crushed . | . . . Highest Temperature 372 | 90 372 . Average Temperature 97 | 31 179 . Received Heat Transfer 153 | . 102 51 Effects 3 | . 3 . Interference 3 | . 3 . Siege Activations . | . . . Martial Activations . | . . . Shielding Activations . | . . . Robots Disrupted . | . . . Combat Hostiles . | . . . Robots Corrupted . | . . . Combat Hostiles . | . . . Parts Fried . | . . . Impact Corruptions . | . . . Robots Melted . | . . . Combat Hostiles . | . . . Parts Melted 3 | 1 2 . Heat Transferred 916 | 532 384 . Parts Sabotaged . | . . . Parts Stolen . | . . . Parts Stripped . | . . . Power Chain Reactions . | . . . Alert | -11 -10 -10 ------- Run | Yrd Mat Sub Maximum Alert Level . | . . . Low Security (%) 100 | 100 100 . Level 1 . | . . . Level 2 . | . . . Level 3 . | . . . Level 4 . | . . . Level 5 . | . . . High Security . | . . . Max Security . | . . . Peak Influence 40 | 5 40 . Initial . | . . . Average 4 | . 10 . Influence Increases 149 | 30 69 50 Destroy 0b10 Robot/C 60 | . 40 20 Destroy 0b10 Robot/NC 35 | 30 5 . Destroy Leader 10 | . 10 . Successful Hack 14 | . 14 . Lose Combat Pursuer 30 | . . 30 Influence Decreases 119 | 30 69 20 Time Decay 119 | 30 69 20 Squads Dispatched . | . . . Investigation . | . . . Extermination . | . . . Reinforcement . | . . . Assault . | . . . Garrison . | . . . Intercept . | . . . Searches Triggered . | . . . Construction Impeded . | . . . Haulers Reinforced . | . . . Active Scanning Responses . | . . . Cargo Convoy Interrupts . | . . . Stealth | -11 -10 -10 --------- Run | Yrd Mat Sub Distress Signals . | . . . Communications Jammed . | . . . Distress Signals . | . . . Times Spotted 13 | . 3 10 Peak Tracking Total 4 | . 2 4 Tactical Retreats 1 | . . 1 Traps | -11 -10 -10 ------- Run | Yrd Mat Sub Traps Triggered . | . . . Indirectly . | . . . Trap Hack Attempts . | . . . Triggered . | . . . Disarmed . | . . . Reprogrammed . | . . . Reused . | . . . Traps Extracted . | . . . Installed . | . . . Triggered . | . . . Machines | -11 -10 -10 ---------- Run | Yrd Mat Sub Machines Disabled . | . . . Max in Single Turn . | . . . Machines Repaired . | . . . Machines Dismantled . | . . . Machines Sabotaged . | . . . Overloaded Fab Kills . | . . . Hacking | -11 -10 -10 --------- Run | Yrd Mat Sub Machines Accessed 1 | . 1 . Terminals 1 | . 1 . Fabricators . | . . . Repair Stations . | . . . Recycling Units . | . . . Scanalyzers . | . . . Garrison Access . | . . . Total Hacks 1 | . 1 . Successful 1 | . 1 . Failed . | . . . Catastrophic . | . . . Database Lockouts . | . . . Manual 1 | . 1 . Terminals 1 | . 1 . Fabricators . | . . . Repair Stations . | . . . Recycling Units . | . . . Scanalyzers . | . . . Garrison Access . | . . . Terminal Hacks . | . . . Fabricator Hacks . | . . . Repair Station Hacks . | . . . Recycling Unit Hacks . | . . . Scanalyzer . | . . . Garrison Access Hacks . | . . . Unauthorized Hacks 1 | . 1 . Terminals 1 | . 1 . Botnet 1 | . 1 . Fabricators . | . . . Repair Stations . | . . . Recycling Units . | . . . Scanalyzers . | . . . Garrison Access . | . . . Data Cores Recovered 1 | . 1 . Used . | . . . Hacking Detections . | . . . Full Trace Events . | . . . Feedback Events . | . . . Feedback Blocked . | . . . Robot Schematics Acquired . | . . . Robots Built . | . . . Authchips . | . . . Time . | . . . Total Robot Build Rating . | . . . Part Schematics Acquired . | . . . Parts Built . | . . . Authchips . | . . . Time . | . . . Total Part Build Rating . | . . . Part Studies Acquired . | . . . Parts Repaired . | . . . Time . | . . . Parts Recycled . | . . . Recycled Matter . | . . . Retrieved Matter . | . . . Retrieved Components . | . . . Parts Scanalyzed . | . . . Part Schematics Acquired . | . . . Parts Damaged . | . . . Bothacking | -11 -10 -10 ------------ Run | Yrd Mat Sub Used RIF Installer . | . . . Robots Hacked . | . . . Non-combat . | . . . Combat . | . . . Robot Hacks Applied . | . . . Relay Couplers Released . | . . . Fabnet Peak Effective % . | . . . Robots Rewired . | . . . Allies Hacked . | . . . Hacks Repelled . | . . . Allies | -11 -10 -10 -------- Run | Yrd Mat Sub Total Allies . | . . . Largest Group . | . . . Highest-Rated Group . | . . . Highest-Rated Ally . | . . . Total Orders . | . . . Ally Attacks . | . . . Total Damage . | . . . Kills . | . . . Allies Corrupted . | . . . Allies Melted . | . . . Intel | -11 -10 -10 ------- Run | Yrd Mat Sub Active Infowar (turns) 731 | 191 184 356 Terrain 578 | 38 184 356 Seismic 247 | 191 56 . Robot Analysis Total . | . . . Derelict Logs Recovered . | . . . Drone Launches . | . . . Drone Recoveries . | . . . Exploration | -11 -10 -10 ------------- Run | Yrd Mat Sub Turns Passed 849 | 309 184 356 Spaces Moved 577 | 211 117 249 Core 89 | 8 . 81 Treads . | . . . Legs 488 | 203 117 168 Wheels . | . . . Hover . | . . . Flight . | . . . Fastest Speed 50 | 50 120 50 Average Speed 109 | 117 120 97 Slowest Speed 190 | 120 120 190 Overloaded Moves . | . . . Propulsion Burnouts . | . . . Robots Hopped . | . . . Potential Cave-ins . | . . . Cave-ins Triggered . | . . . Exploration Rate (%) 12 | 7 14 17 Regions Visited 2 Branch Regions 1 Pre-discovered Areas . | . . . Known Exits Taken . | . . . Unknown Exits Taken 2 | 1 1 . Scrap Searched 2 | . . 2 Spaces Dug . | . . . Terrain Destroyed 36 | . . 36 Melee . | . . . Projectile . | . . . AOE 36 | . . 36 Terrain Rammed . | . . . Walls Destroyed . | . . . Machines Disabled . | . . . Actions | -11 -10 -10 --------- Run | Yrd Mat Sub Total 684 | 239 139 306 Wait . | . . . Move 575 | 210 116 249 Hop . | . . . Pick Up 13 | 5 4 4 Fast Attach 11 | 8 1 2 Attach 5 | . 1 4 Detach 2 | . . 2 Swap 1 | . 1 . Drop 9 | 1 4 4 Fire 68 | 15 12 41 Melee . | . . . Ram . | . . . Kick . | . . . Crush . | . . . Escape Stasis . | . . . Rewire . | . . . Trap . | . . . Miscellaneous . | . . . Route ------- -11/Scrapyard -10/Materials -10/Subcaves History --------- Turn | Location | Event 18 | -11/Scrapyard | Discovered new exit (range 15) 310 | -11/Scrapyard | Entered Materials 311 | -10/Materials | Build established: Mutant 326 | -10/Materials | Discovered new exit (range 9) 494 | -10/Materials | Entered Subcaves 500 | -10/Subcaves | Ambushed by Subdwellers from Twisted Machinery 637 | -10/Subcaves | Shifting Twisted Machinery released Flamer 645 | -10/Subcaves | Shifting Twisted Machinery released Hvy. Riot Gun 732 | -10/Subcaves | Core integrity fell below 50% 752 | -10/Subcaves | Lost 5 parts (2p2n1w) 806 | -10/Subcaves | Core integrity fell below 20% 850 | -10/Subcaves | Destroyed by EM-ED9(R) with Subdweller Machine Gun Last Messages --------------- 00744_ XQ-6XS(R) destroyed. 00747_ Acquired Assault Rifle. 00749_ Acquired Grenade Launcher. 00750_ Acquired 45 matter. 00793_ Acquired Sub. Beam Cannon. 00803_ Aluminum Leg destroyed. 00804_ Dropped Assault Rifle. 00804_ Dropped Grenade Launcher. 00824_ Assault Rifle destroyed. 00838_ Acquired Grenade Launcher. 00846_ Searching scrap... 00846_ Found Sub. Laser. 00846_ Found Mak. Light Armor Plating. 00846_ Found 32 Matter. 00846_ Searching scrap... 00846_ Found Mak. Shrapnel Gun. 00846_ Found Sub. Laser. 00846_ Found 44 Matter. 00847_ Acquired 44 matter. 00847_ Acquired 32 matter. Map ----- +----------------------------------------------------+ | ??????????????????????????????????????????? | | ??????????????????????????????????????????? | | ??????????????????????????????????????????? | | ??????????????????????????????????????????? | | ??????????????????????????????????????????? | | ??????????????????????????????????????????? | | ??????????????????????????????????????????? | | ??????????????????????????????????????????? | | ??????????????????????????????????????????? | | ???????????????????????????##?????????????? | | ??????????????????????? ?## # ???????? | | ????????????????????????? ??????? | | ?????????????????? ?????? ??????? | | ??????????????????????#?? #?????? | | ????????????????????????? #?????? | | ?????????#???????????##?# ##???? | | ???????????????#???????## ? ###?# | | ?????????????#?????????# ??# #?# | | ????????????????##????## #?## ??? #?? | | ???????????????## ##??# #?# #????# "#?? | | ???????????????# ##?# ### ##???# ##? | | ???????????#????# ### ## ##### #? | | ???????????####### ## % ## | | ???????????#< # % ## | | ???????????#![[ | | ???????????#[ #<@ ## ## | | ???????????#&# #### ##### | | ???????????#< # #???# #### | | ?????????#?# ##??## #### | | ???????#???###### # ##???# ### | | ????????????????### #????## #?## | | ???#????????????# #?????## ## ###??## | | ????????????????## ##?#????######?????? | | ??????????#????#### ##??#??????????????? | | ???????????#??????## [###??#?????????????? | | ?????#????????????## ##????????????????# | | ???????????#??????# #?????????????#??? | | ???????#????????### #???#????????????? | | ????????????????## #????????????????? | | ??????#????????## ##???????????????? | | ???????????????# #???????????????? | | ??????#????????#### ##??????????#????? | | ????????????#?????## ###???????????????? | | ???????????????????## ###??#?????????????? | | ????????????????????# ####???????????????? | | ????????????????##??# #???????????????? | | ???????#????????????# ##?????#####?????? | | ???????????????###??# #??##### # ####### | | ???????????????# ##### #### | | ??????????????## ## ## #?? | +----------------------------------------------------+ Best States ------------- Heat Dissipation 39 Energy Generation 10 Energy Capacity 125 Matter Stores 300 Matter Capacity 300 Sight Range 16 Terrain Scan Range 16 Terrain Scan Density 10 Evasion (%) 55 Item Schematics ----------------- None Robot Schematics ------------------ None Fabricated ------------ Nothing Repaired ---------- Nothing Studied --------- None Alien Tech Used ----------------- None Achievements -------------- None Challenges ------------ None Game ------ Seed ReactiveMobileStorm Manual? 0 Play Time 00:13:31 Cumulative 80.9 hours Start 2025.11.14 @ 13:44:02 End 2025.11.14 @ 13:54:42 Sessions 1 Manual Loads 0 Difficulty Rogue Special Mode None Game No. 103 Rogue 103 Adventurer 0 Explorer 0 Win Type - Total 0 Types 0/0/0/0/0/0/0/0/0/0 Lore% 23 Gallery% 40 Achievement% 23 Wizard Run 0 Options --------- Layout 0 ASCII 0 Keyboard 0 Movement Mouse Keybinds 0 Fullscreen 1 Font 24/Smallcaps Map View 76x50 Zoom Use 0% Tactical HUD 1 Map Filters NONE Filters NONE Steam 1 RUN: ae3ebc03-d2a9-41fe-8558-d208e43682c5